fUST/lending_fUST_20250405
["ID","MTS","AMOUNT","RATE_DAILY","PERIOD"]
[357141973,1743787841799,-500.0,0.0001889,2]
[357141975,1743787841810,-500.0,0.00018895,2]
[357141977,1743787841819,-500.0,0.00018895,2]
[357141979,1743787841829,-500.0,0.00018895,2]
[357141981,1743787841838,-487.8,0.00018895,2]
[357141983,1743787841849,-500.0,0.00018895,2]
[357141985,1743787841859,-500.0,0.00018895,2]
[357141987,1743787841869,-909.42,0.00018895,2]
[357141989,1743787841878,-536.14,0.00019164,2]
[357141991,1743787841888,-500.0,0.00019169,2]
[357141993,1743787841897,-500.0,0.00019169,2]
[357141995,1743787841906,-500.0,0.00019169,2]
[357141997,1743787841916,-500.0,0.00019169,2]
[357141999,1743787841925,-500.0,0.00019169,2]
[357142001,1743787841935,-909.42,0.00019169,2]
[357142003,1743787841944,-1100.36638141,0.00019279,2]
[357142005,1743787841954,-536.14,0.00019438,2]
[357142007,1743787841964,-564.46,0.00019443,2]
[357142009,1743787841973,-500.0,0.00019443,2]
[357142011,1743787841983,-500.0,0.00019443,2]
[357142013,1743787841992,-500.0,0.00019443,2]
[357142015,1743787842002,-333.75,0.00019443,2]
[357142017,1743787842012,-909.42,0.00019443,2]
[357142019,1743787842022,-500.0,0.00019542,2]
[357142021,1743787842031,-500.0,0.00019542,2]
[357142023,1743787842041,-536.14,0.00019712,2]
[357142025,1743787842051,-500.0,0.00019716,2]
[357142027,1743787842060,-500.0,0.00019716,2]
[357142029,1743787842069,-500.0,0.00019716,2]
[357142031,1743787842079,-909.42,0.00019716,2]
[357142033,1743787842089,-536.14,0.00019986,2]
[357142035,1743787842100,-500.0,0.0001999,2]
[357142037,1743787842109,-500.0,0.0001999,2]
[357142039,1743787842119,-500.0,0.0001999,2]
[357142041,1743787842129,-909.42,0.0001999,2]
[357142043,1743787842138,-555.449998,0.0002,2]
[357142045,1743787842148,-2000.0,0.0002,4]
[357142047,1743787842156,-1100.36638141,0.00020072,2]
[357142049,1743787842166,-536.14,0.0002026,2]
[357142051,1743787842176,-500.0,0.00020264,2]
[357142053,1743787842185,-500.0,0.00020264,2]
[357142055,1743787842196,-500.0,0.00020264,2]
[357142057,1743787842206,-909.42,0.00020264,2]
[357142059,1743787842216,-536.14,0.00020533,2]
[357142061,1743787842226,-500.0,0.00020538,2]
[357142063,1743787842235,-500.0,0.00020538,2]
[357142065,1743787842246,-500.0,0.00020538,2]
[357142067,1743787842255,-909.42,0.00020538,2]
[357142069,1743787842265,-536.14,0.00020807,2]
[357142071,1743787842275,-500.0,0.00020812,2]
[357142073,1743787842285,-442.12,0.00020812,2]
[357142075,1743787842294,-470.52,0.00020812,2]
[357142077,1743787842304,-909.42,0.00020812,2]
[357142079,1743787842314,-1100.36638141,0.00020866,3]
[357142081,1743787842324,-2000.0,0.00021,4]
[357142083,1743787842334,-536.14,0.00021081,2]
[357142085,1743787842343,-500.0,0.00021086,2]
[357142087,1743787842356,-909.42,0.00021086,2]
[357142089,1743787842368,-167.642954,0.00021353,2]
[357142091,1743787842377,-536.33,0.00021355,2]
[357142093,1743787842388,-500.0,0.0002136,2]
[357142096,1743787842398,-909.42,0.0002136,2]
[357142097,1743787842407,-500.0,0.00021634,2]
[357142100,1743787842417,-909.42,0.00021634,2]
[357142102,1743787842426,-1100.36638141,0.00021659,3]
[357142105,1743787842436,-500.0,0.00021908,2]
[357142107,1743787842446,-909.42,0.00021908,2]
[357142109,1743787842455,-151.0,0.00021942,7]
[357142112,1743787842465,-151.0,0.00021942,7]
[357142116,1743787842475,-215.205594,0.00021942,7]
[357142118,1743787842484,-1593.0,0.00021943,2]
[357142123,1743787842503,-2259.0,0.00021943,2]
[357142125,1743787842514,-2000.0,0.00022,4]
[357142128,1743787842524,-340.75,0.00022182,2]
[357142131,1743787842534,-909.42,0.00022182,2]
[357142133,1743787842544,-1446.85009143,0.00022352,2]
[357142136,1743787842554,-1100.36638141,0.00022452,4]
[357142139,1743787842563,-909.45,0.00022456,2]
[357142142,1743787842572,-1000.0,0.0002265,2]
[357142145,1743787842582,-1000.0,0.00022836,2]
[357142148,1743787842592,-1000.0,0.00022836,2]
[357142152,1743787842603,-2000.0,0.00023,4]
[357142155,1743787842614,-1000.0,0.00023176,2]
[357142158,1743787842625,-1100.36638141,0.00023245,4]
[357142161,1743787842634,-2000.0,0.00024,4]
[357142163,1743787842644,-1100.36638141,0.00024038,5]
[357142165,1743787842654,-1345.6765086,0.00024056,2]
[357142167,1743787842663,-10000.0,0.000245,4]
[357142169,1743787842673,-500.0,0.00024773,2]
[357142172,1743787842683,-500.0,0.00024773,2]
[357142174,1743787842692,-500.0,0.00024773,2]
[357142176,1743787842703,-500.0,0.00024773,2]
[357142178,1743787842712,-298.88059172,0.00024799,2]
[357142180,1743787842722,-89485.9498894,0.000248,2]
[357142182,1743787842732,-151.0,0.000248,7]
[357142184,1743787842742,-15498.2644732,0.000248,2]
[357142186,1743787842752,-237.308334,0.000248,2]
[357142188,1743787842763,-237.308334,0.000248,2]
[357142190,1743787842773,-151.0,0.000248,7]
[357142192,1743787842783,-151.0,0.000248,7]
[357142194,1743787842793,-513.7,0.000248,2]
[357142196,1743787842803,-1100.36638141,0.00024831,5]
[357142198,1743787842813,-500.0,0.00024873,2]
[357142201,1743787842824,-500.0,0.00024873,2]
[357142203,1743787842834,-380.44249459,0.00024873,2]
[357142205,1743787842844,-500.0,0.00024873,2]
[357142207,1743787842854,-500.0,0.00024873,2]
[357142209,1743787842864,-500.0,0.00024873,2]
[357142211,1743787842874,-2000.0,0.0002489,3]
[357142213,1743787842884,-1549.82644732,0.0002489,2]
[357142215,1743787842894,-328.09353105,0.000249,3]
[357142217,1743787842904,-1255.23602375,0.000249,3]
[357142219,1743787842914,-1342.17,0.000249,2]
[357142221,1743787842924,-7005.66,0.000249,14]
[357142223,1743787842934,-2000.0,0.000249,3]
[357142225,1743787842945,-2000.0,0.000249,3]
[357142227,1743787842954,-160.0,0.000249,3]
[357142229,1743787842964,-160.0,0.000249,3]
[357142231,1743787842973,-2505.05,0.000249,14]
[357142233,1743787842983,-151.0,0.000249,7]
[357142235,1743787842993,-114874.36238719,0.000249,2]
[357142246,1743787843083,-3134.78542588,0.000249,2]
[357142586,1743787846137,-500.0,0.00015054,2]
[357142589,1743787846148,-595.0890691,0.00015328,2]
[357142591,1743787846158,-419.12848707,0.00016247,2]
[357142593,1743787846168,-164.26496394,0.00016247,2]
[357142595,1743787846178,-12520.15255516,0.00018605,2]
[357142597,1743787846188,-542.0,0.00021943,2]
[357142599,1743787846198,-46682.31140806,0.000249,2]
[357142601,1743787846210,-2604.73064177,0.000249,2]
[357142842,1743788158701,199.85,0.00025,30]
[357142847,1743788321200,324.20670944,0.000145,3]
[357142850,1743788525205,155.28,0.000249,31]
[357142851,1743788525252,155.28,0.000249,31]
[357142852,1743788525311,155.28,0.000249,31]
[357142853,1743788525370,155.28,0.000249,31]
[357142854,1743788525435,155.28,0.000249,31]
[357142872,1743788852368,20008.0,0.0002497,120]
[357142873,1743788852858,15015.8139819,0.0002496,120]
[357142874,1743788852889,4992.1860181,0.0002496,120]
[357142875,1743788853413,20008.0,0.0002495,120]
[357142907,1743788973059,14005.0,0.0002489,120]
[357142908,1743788973537,14005.0,0.0002488,120]
[357142909,1743788974062,14005.0,0.0002487,120]
[357142927,1743789032192,-174.82652,0.00013699,2]
[357142928,1743789032203,-167.642954,0.00014912,2]
[357142929,1743789032214,-300.0,0.00015053,2]
[357142930,1743789032225,-2228.16274111,0.00015054,2]
[357142931,1743789032238,-962.28222055,0.00015054,2]
[357142932,1743789032249,-500.0,0.00015054,2]
[357142933,1743789032259,-500.0,0.00015054,2]
[357142934,1743789032269,-527.99846481,0.00015054,2]
[357142935,1743789032279,-500.0,0.00015054,2]
[357142936,1743789032289,-500.0,0.00015054,2]
[357142937,1743789032300,-500.0,0.00015054,2]
[357142938,1743789032309,-500.0,0.00015054,2]
[357142939,1743789032319,-500.0,0.00015054,2]
[357142940,1743789032332,-500.0,0.00015054,2]
[357142941,1743789032345,-500.0,0.00015054,2]
[357142942,1743789032355,-633.18,0.00015054,2]
[357142943,1743789032365,-500.0,0.00015054,2]
[357142944,1743789032375,-514.10941142,0.00015054,2]
[357142946,1743789032384,-434.8352558,0.00015054,2]
[357142948,1743789032396,-65.72251139,0.00015054,2]
[357142950,1743789032406,-500.0,0.00015054,2]
[357142952,1743789032416,-500.0,0.00015054,2]
[357142953,1743789032425,-500.0,0.00015054,2]
[357142954,1743789032435,-461.23029521,0.00015054,2]
[357142955,1743789032445,-500.0,0.00015054,2]
[357142957,1743789032455,-462.93212355,0.00015054,2]
[357142958,1743789032464,-500.0,0.00015054,2]
[357142959,1743789032474,-500.0,0.00015054,2]
[357142960,1743789032483,-500.0,0.00015054,2]
[357142961,1743789032493,-500.0,0.00015054,2]
[357142962,1743789032502,-500.0,0.00015054,2]
[357142963,1743789032512,-500.0,0.00015054,2]
[357142964,1743789032522,-610.63,0.00015054,2]
[357142965,1743789032531,-500.0,0.00015054,2]
[357142966,1743789032541,-500.0,0.00015054,2]
[357142967,1743789032551,-500.0,0.00015054,2]
[357142968,1743789032562,-500.0,0.00015054,2]
[357142969,1743789032571,-336.44731754,0.000151,2]
[357142970,1743789032583,-500.0,0.000151,2]
[357142971,1743789032592,-500.0,0.000151,2]
[357142972,1743789032601,-500.0,0.000151,2]
[357142973,1743789032611,-500.0,0.000151,2]
[357142974,1743789032620,-500.0,0.000151,2]
[357142975,1743789032630,-500.0,0.000151,2]
[357142976,1743789032639,-344.75,0.00015328,2]
[357142977,1743789032649,-500.0,0.00015328,2]
[357142978,1743789032659,-171.87,0.00015328,2]
[357142979,1743789032669,-500.0,0.00015602,2]
[357142980,1743789032678,-541.79,0.00015876,2]
[357142981,1743789032688,-1000.44790583,0.00016,2]
[357142982,1743789032698,-151.0,0.0001841,2]
[357142983,1743789032709,-24900.0,0.00018422,2]
[357142984,1743789032718,-1050.47767893,0.000188,2]
[357142985,1743789032728,-822.49544621,0.000189,2]
[357142986,1743789032738,-822.49544612,0.00019624,2]
[357142987,1743789032747,-822.49544612,0.00020348,2]
[357142988,1743789032758,-1083.79424406,0.00020579,2]
[357142989,1743789032768,-1000.0,0.00020579,2]
[357142990,1743789032778,-1000.0,0.00020579,2]
[357142991,1743789032791,-1000.0,0.00020579,2]
[357142992,1743789032801,-822.49544612,0.00021072,3]
[357142993,1743789032811,-822.49544612,0.00021797,3]
[357142994,1743789032820,-1050.47767892,0.00021814,2]
[357142995,1743789032832,-419.12848707,0.00022049,2]
[357142996,1743789032855,-1645.02019116,0.00022084,2]
[357142997,1743789032867,-781.25,0.0002212,2]
[357142998,1743789032876,-822.49544612,0.00022521,4]
[357142999,1743789032886,-171.3613985,0.00022774,2]
[357143000,1743789032896,-500.0,0.00022991,2]
[357143001,1743789032906,-500.0,0.00022991,2]
[357143002,1743789032916,-500.0,0.00022991,2]
[357143003,1743789032926,-500.0,0.00022991,2]
[357143004,1743789032936,-500.0,0.00022991,2]
[357143005,1743789032946,-500.0,0.00022991,2]
[357143006,1743789032956,-500.0,0.00022991,2]
[357143007,1743789032966,-502.48668109,0.00022991,2]
[357143008,1743789032977,-500.0,0.00022991,2]
[357143009,1743789032987,-500.0,0.00022991,2]
[357143010,1743789032996,-500.0,0.00022991,2]
[357143011,1743789033006,-519.38,0.00022991,2]
[357143012,1743789033016,-500.0,0.00022991,2]
[357143013,1743789033026,-500.0,0.00022991,2]
[357143014,1743789033036,-500.0,0.00022991,2]
[357143015,1743789033046,-500.0,0.00022991,2]
[357143016,1743789033056,-500.0,0.00022991,2]
[357143017,1743789033066,-500.0,0.00022991,2]
[357143018,1743789033075,-190.57021611,0.00022991,2]
[357143019,1743789033088,-500.0,0.00022991,2]
[357143020,1743789033099,-500.0,0.00022991,2]
[357143021,1743789033108,-500.0,0.00022991,2]
[357143022,1743789033119,-507.48368494,0.00022991,2]
[357143023,1743789033129,-500.0,0.00022991,2]
[357143024,1743789033139,-500.0,0.00022991,2]
[357143025,1743789033149,-508.25981188,0.00022991,2]
[357143026,1743789033159,-500.0,0.00022991,2]
[357143027,1743789033169,-500.0,0.00022991,2]
[357143028,1743789033179,-500.0,0.00022991,2]
[357143029,1743789033189,-500.0,0.00022991,2]
[357143030,1743789033198,-500.0,0.00022991,2]
[357143031,1743789033208,-529.37943619,0.00022991,2]
[357143032,1743789033218,-500.0,0.00022991,2]
[357143033,1743789033228,-511.15628478,0.00022991,2]
[357143034,1743789033237,-500.0,0.00022991,2]
[357143035,1743789033247,-500.0,0.00022991,2]
[357143036,1743789033257,-510.81350676,0.00022991,2]
[357143037,1743789033266,-500.0,0.00022991,2]
[357143038,1743789033277,-500.0,0.00022991,2]
[357143039,1743789033287,-500.0,0.00022991,2]
[357143040,1743789033297,-500.0,0.00022991,2]
[357143041,1743789033307,-500.0,0.00022991,2]
[357143042,1743789033318,-516.49151757,0.00022991,2]
[357143043,1743789033329,-500.0,0.00022991,2]
[357143044,1743789033342,-506.17295758,0.00022991,2]
[357143045,1743789033353,-565.4465649,0.00022991,2]
[357143046,1743789033364,-500.0,0.00022991,2]
[357143047,1743789033374,-500.0,0.00022991,2]
[357143048,1743789033385,-556.70088835,0.00022991,2]
[357143049,1743789033395,-500.0,0.00022991,2]
[357143050,1743789033405,-500.0,0.00022991,2]
[357143051,1743789033415,-515.0,0.00022991,2]
[357143052,1743789033426,-500.0,0.00022991,2]
[357143053,1743789033436,-500.0,0.00022991,2]
[357143054,1743789033446,-500.0,0.00022991,2]
[357143055,1743789033459,-508.75460743,0.00022991,2]
[357143056,1743789033470,-406.17235112,0.00022991,2]
[357143057,1743789033480,-510.17311957,0.00022991,2]
[357143058,1743789033490,-500.0,0.00022991,2]
[357143059,1743789033499,-500.0,0.00022991,2]
[357143060,1743789033509,-586.75,0.00022991,2]
[357143061,1743789033520,-500.0,0.00022991,2]
[357143062,1743789033529,-508.01550889,0.00022991,2]
[357143063,1743789033539,-500.0,0.00022991,2]
[357143064,1743789033549,-613.4,0.00022991,2]
[357143065,1743789033559,-508.24089572,0.00022991,2]
[357143066,1743789033568,-594.61444614,0.00022991,2]
[357143067,1743789033578,-500.0,0.00022991,2]
[357143068,1743789033590,-3300.8579121,0.00022992,2]
[357143069,1743789033600,-822.49544612,0.00023245,4]
[357143070,1743789033610,-500.0,0.00023265,2]
[357143071,1743789033620,-500.0,0.00023265,2]
[357143072,1743789033630,-368.9,0.00023265,2]
[357143073,1743789033640,-500.0,0.00023265,2]
[357143074,1743789033650,-500.0,0.00023265,2]
[357143075,1743789033660,-500.0,0.00023265,2]
[357143076,1743789033669,-500.0,0.00023265,2]
[357143077,1743789033679,-590.98,0.00023265,2]
[357143078,1743789033689,-500.0,0.00023265,2]
[357143079,1743789033699,-500.0,0.00023265,2]
[357143080,1743789033709,-500.0,0.00023265,2]
[357143081,1743789033718,-315.77891122,0.00023265,2]
[357143101,1743789037960,-265.49465008,0.00022991,2]
[357143103,1743789037972,-234.50534992,0.00022991,2]
[357143105,1743789037983,-504.01109854,0.00022991,2]
[357143107,1743789037993,-500.0,0.00023264,2]
[357143109,1743789038002,-500.0,0.00023264,2]
[357143111,1743789038012,-500.0,0.00023264,2]
[357143113,1743789038021,-500.0,0.00023264,2]
[357143115,1743789038031,-500.0,0.00023264,2]
[357143117,1743789038041,-500.0,0.00023264,2]
[357143119,1743789038051,-500.0,0.00023264,2]
[357143121,1743789038061,-500.0,0.00023264,2]
[357143123,1743789038070,-500.0,0.00023264,2]
[357143127,1743789038080,-322.40621421,0.00023264,2]
[357143129,1743789038092,-523.45512674,0.00023264,2]
[357143132,1743789038102,-30.93108878,0.00023265,2]
[357143134,1743789038112,-500.0,0.00023265,2]
[357143136,1743789038122,-500.0,0.00023265,2]
[357143138,1743789038131,-317.49,0.00023265,2]
[357143140,1743789038140,-500.0,0.00023265,2]
[357143142,1743789038151,-500.0,0.00023265,2]
[357143144,1743789038161,-500.0,0.00023265,2]
[357143146,1743789038170,-500.0,0.00023539,2]
[357143148,1743789038179,-500.0,0.00023539,2]
[357143150,1743789038189,-367.70112186,0.00023539,2]
[357143152,1743789038201,-132.29887814,0.00023539,2]
[357143154,1743789038210,-293.58,0.00023539,2]
[357143156,1743789038220,-500.0,0.00023539,2]
[357143158,1743789038229,-500.0,0.00023539,2]
[357143160,1743789038238,-236.59,0.00023539,2]
[357143162,1743789038248,-500.0,0.00023539,2]
[357143164,1743789038257,-500.0,0.00023539,2]
[357143166,1743789038267,-154.15,0.00023539,2]
[357143168,1743789038276,-500.0,0.00023539,2]
[357143171,1743789038286,-500.0,0.00023539,2]
[357143173,1743789038296,-500.0,0.00023813,2]
[357143175,1743789038306,-500.0,0.00023813,2]
[357143177,1743789038315,-500.0,0.00023813,2]
[357143195,1743789038484,-500.0,0.00023813,2]
[357143197,1743789038495,-209.35,0.00023813,2]
[357143199,1743789038505,-221.41,0.00023813,2]
[357143202,1743789038515,-500.0,0.00023813,2]
[357143204,1743789038524,-500.0,0.00023813,2]
[357143206,1743789038534,-479.69,0.00023813,2]
[357143208,1743789038543,-822.49544612,0.00023969,5]
[357143210,1743789038553,-500.0,0.00024087,2]
[357143212,1743789038563,-500.0,0.00024087,2]
[357143214,1743789038572,-500.0,0.00024087,2]
[357143216,1743789038581,-500.0,0.00024087,2]
[357143218,1743789038593,-500.0,0.00024087,2]
[357143220,1743789038603,-500.0,0.00024087,2]
[357143222,1743789038613,-1009.2573815,0.00024152,2]
[357143224,1743789038622,-500.0,0.00024361,2]
[357143226,1743789038632,-258.99,0.00024361,2]
[357143228,1743789038641,-500.0,0.00024361,2]
[357143230,1743789038650,-500.0,0.00024361,2]
[357143232,1743789038660,-500.0,0.00024361,2]
[357143234,1743789038669,-500.0,0.00024361,2]
[357143236,1743789038679,-500.0,0.00024635,2]
[357143238,1743789038689,-500.0,0.00024635,2]
[357143240,1743789038699,-500.0,0.00024635,2]
[357143242,1743789038709,-500.0,0.00024635,2]
[357143244,1743789038719,-501.33,0.00024635,2]
[357143246,1743789038729,-822.49544612,0.00024693,5]
[357143248,1743789038742,-500.0,0.00024749,2]
[357143250,1743789038751,-500.0,0.00024749,2]
[357143252,1743789038760,-405.38823193,0.00024749,2]
[357143254,1743789038770,-2000.0,0.0002475,7]
[357143256,1743789038779,-2000.0,0.000248,7]
[357143258,1743789038793,-2481.78094336,0.00024809,2]
[357143260,1743789038802,-1050.47767892,0.00024829,2]
[357143261,1743789038811,-172.1544114,0.00024841,2]
[357143264,1743789038822,-153.0,0.00024841,2]
[357143265,1743789038831,-171.9149093,0.00024841,2]
[357143267,1743789038846,-153.0,0.00024841,2]
[357143268,1743789038856,-153.0,0.00024841,2]
[357143269,1743789038872,-563.7213539,0.00024841,2]
[357143270,1743789038881,-563.7213539,0.00024841,2]
[357143271,1743789038891,-563.7213539,0.00024841,2]
[357143272,1743789038901,-289.904121,0.00024841,2]
[357143273,1743789038910,-563.7213539,0.00024841,2]
[357143274,1743789038920,-156.5144398,0.00024841,2]
[357143275,1743789038930,-156.5144398,0.00024841,2]
[357143276,1743789038940,-563.7213539,0.00024841,2]
[357143277,1743789038950,-156.5144398,0.00024841,2]
[357143278,1743789038960,-563.7213539,0.00024841,2]
[357143279,1743789038970,-156.5144398,0.00024841,2]
[357143280,1743789038981,-500.0,0.00024873,2]
[357143281,1743789038991,-500.0,0.00024873,2]
[357143282,1743789039002,-500.0,0.00024873,2]
[357143283,1743789039016,-482.02432594,0.0002489,2]
[357143284,1743789039026,-500.0,0.00024898,2]
[357143285,1743789039037,-500.0,0.00024898,2]
[357143286,1743789039047,-500.0,0.00024898,2]
[357143287,1743789039057,-500.0,0.00024898,2]
[357143288,1743789039068,-500.0,0.00024898,2]
[357143289,1743789039078,-500.0,0.00024898,2]
[357143290,1743789039091,-500.0,0.00024898,2]
[357143291,1743789039101,-500.0,0.00024898,2]
[357143292,1743789039113,-500.0,0.00024898,2]
[357143293,1743789039123,-500.0,0.00024898,2]
[357143294,1743789039133,-500.0,0.00024898,2]
[357143295,1743789039143,-500.0,0.00024898,2]
[357143296,1743789039152,-517.56,0.00024898,2]
[357143297,1743789039161,-500.0,0.00024898,2]
[357143298,1743789039171,-500.0,0.00024898,2]
[357143299,1743789039181,-500.0,0.00024898,2]
[357143300,1743789039190,-500.0,0.00024898,2]
[357143301,1743789039199,-500.0,0.00024898,2]
[357143302,1743789039209,-500.0,0.00024898,2]
[357143303,1743789039218,-500.0,0.00024898,2]
[357143304,1743789039228,-500.0,0.00024898,2]
[357143305,1743789039237,-500.0,0.00024898,2]
[357143306,1743789039246,-588.3858353,0.00024898,2]
[357143307,1743789039255,-500.0,0.00024898,2]
[357143308,1743789039265,-500.0,0.00024898,2]
[357143309,1743789039276,-500.0,0.00024898,2]
[357143310,1743789039286,-500.0,0.00024898,2]
[357143311,1743789039296,-500.0,0.00024898,2]
[357143312,1743789039306,-500.0,0.00024898,2]
[357143313,1743789039316,-500.0,0.00024898,2]
[357143314,1743789039325,-500.0,0.00024898,2]
[357143315,1743789039337,-500.0,0.00024898,2]
[357143316,1743789039347,-500.0,0.00024898,2]
[357143317,1743789039356,-500.0,0.00024899,2]
[357143318,1743789039366,-196.24382712,0.00024899,2]
[357143319,1743789039376,-500.0,0.00024899,2]
[357143320,1743789039386,-12520.15255516,0.000249,3]
[357143321,1743789039396,-5946.0450243,0.000249,14]
[357143322,1743789039409,-455.1549757,0.000249,14]
[357143323,1743789039419,-365.53143205,0.000249,2]
[357143338,1743789040164,-842.42856795,0.000249,2]
[357143339,1743789040174,-1166.2714319,0.000249,14]
[357143340,1743789040272,-1000.9806409,0.000249,14]
[357143366,1743789043146,-500.0,0.00022991,2]
[357143367,1743789043157,-95.49976501,0.00023063,2]
[357143368,1743789043170,-431.99323499,0.00023063,2]
[357143369,1743789043180,-87.2879272,0.000249,14]
[357143370,1743789043189,-781.25,0.000249,3]
[357143371,1743789043198,-739.81749625,0.000249,3]
[357143372,1743789043210,-302.0,0.000249,3]
[357143373,1743789043222,-958.18250375,0.000249,3]
[357143374,1743789043231,-2000.0,0.000249,3]
[357143375,1743789043241,-2000.0,0.000249,7]
[357143376,1743789043251,-519.21749655,0.000249,7]
[357143377,1743789043350,-1480.78250345,0.000249,7]
[357143378,1743789043360,-47616.89275707,0.000249,2]
[357143406,1743789046228,-156.5144398,0.00024841,2]
[357143407,1743789046238,-9468.25448501,0.000249,2]
[357143408,1743789046250,-223366.86628032,0.000249,2]
[357143414,1743789093546,9804.0,0.0002496,120]
[357143415,1743789094060,9804.0,0.0002495,120]
[357143416,1743789094523,9804.0,0.0002494,120]
[357143417,1743789213203,6862.0,0.0002489,120]
[357143418,1743789213661,6862.0,0.0002488,120]
[357143419,1743789214311,6862.0,0.0002487,120]
[357143420,1743789333229,4804.0,0.0002489,120]
[357143421,1743789333699,4804.0,0.0002488,120]
[357143422,1743789334159,4804.0,0.0002487,120]
[357143425,1743789453015,3363.0,0.0002489,120]
[357143426,1743789453450,3363.0,0.0002488,120]
[357143427,1743789453919,3363.0,0.0002487,120]
[357143428,1743789573066,2354.0,0.0002479,120]
[357143429,1743789573522,2354.0,0.0002478,120]
[357143430,1743789573987,2354.0,0.0002477,120]
[357143431,1743789693333,1648.0,0.0002479,120]
[357143432,1743789693799,1648.0,0.0002478,120]
[357143433,1743789694300,1648.0,0.0002477,120]
[357143501,1743790232458,-7116.50709515,0.00013599,2]
[357143502,1743790232468,-175.483146,0.00013699,2]
[357143503,1743790232478,-160.0,0.00016462,2]
[357143504,1743790232488,-160.0,0.00016462,2]
[357143505,1743790232497,-160.0,0.00016462,2]
[357143506,1743790232507,-1029.84305674,0.000169,2]
[357143507,1743790232516,-300.0,0.00017687,2]
[357143508,1743790232526,-1029.84305674,0.00017693,2]
[357143509,1743790232536,-1029.84305674,0.00018486,2]
[357143510,1743790232545,-1029.84305674,0.00019279,2]
[357143511,1743790232555,-420.0,0.00019305,2]
[357143512,1743790232564,-240.267347,0.00019947,2]
[357143514,1743790232574,-1029.84305674,0.00020072,2]
[357143516,1743790232583,-1029.84305674,0.00020866,3]
[357143518,1743790232593,-587.0,0.0002107,2]
[357143520,1743790232602,-151.0,0.00021482,2]
[357143522,1743790232612,-151.0,0.00021482,2]
[357143524,1743790232621,-151.0,0.00021482,2]
[357143526,1743790232631,-151.0,0.00021482,2]
[357143528,1743790232640,-151.0,0.00021482,2]
[357143530,1743790232650,-500.0,0.00021495,2]
[357143532,1743790232659,-500.0,0.00021495,2]
[357143534,1743790232668,-500.0,0.00021495,2]
[357143536,1743790232678,-500.0,0.00021495,2]
[357143538,1743790232689,-500.0,0.00021495,2]
[357143540,1743790232700,-595.03,0.00021495,2]
[357143542,1743790232710,-500.0,0.00021495,2]
[357143544,1743790232721,-500.0,0.00021495,2]
[357143545,1743790232733,-500.0,0.00021495,2]
[357143546,1743790232745,-751.9,0.00021495,2]
[357143547,1743790232858,-500.0,0.00021495,2]
[357143548,1743790232901,-500.0,0.00021495,2]
[357143549,1743790232911,-500.0,0.00021495,2]
[357143550,1743790232920,-500.0,0.00021495,2]
[357143551,1743790232929,-500.0,0.00021495,2]
[357143552,1743790232939,-500.0,0.00021495,2]
[357143553,1743790232948,-520.57,0.00021495,2]
[357143554,1743790232958,-500.0,0.00021495,2]
[357143555,1743790232967,-500.0,0.00021495,2]